[Event "Kragero Resort International 2022"]
[Site "Kragero"]
[Date "2022.02.25"]
[Round "6.6"]
[White "Amundsen, Ask"]
[Black "Stolp, Aleksander"]
[Result "1/2-1/2"]
[ECO "B13"]
[WhiteElo "1819"]
[BlackElo "1680"]
[Annotator "NA"]
[PlyCount "248"]
[EventDate "2022.02.23"]
[EventType "swiss"]
[EventCountry "NOR"]
[SourceTitle "playchess.com"]
[Source "ChessBase"]
[SourceQuality "1"]
[TimeControl "5400+30"]

1. e4 {[%emt 0:00:03]} c6 {[%emt 0:00:07]} 2. d4 {[%emt 0:00:12]} d5 {[%emt 0:00:06]} 3. exd5 {[%emt 0:00:13]} cxd5 {[%emt 0:00:08]} 4. Bd3 {[%emt 0:00:05]} Nc6 {[%emt 0:00:22]} 5. c3 {[%emt 0:00:08]} Nf6 {[%emt 0:00:07]} 6. Bf4 {[%emt 0:00:05]} Bg4 {[%emt 0:00:09]} 7. Qb3 {[%emt 0:00:05]} Qd7 {[%emt 0:00:10]} 8. Nd2 {[%emt 0:00:05]} e6 {[%emt 0:00:11]} 9. Ngf3 {[%emt 0:00:05]} Bd6 {[%emt 0:00:11]} 10. Bxd6 {[%emt 0:00:07]} Qxd6 {[%emt 0:00:05]} 11. O-O {[%emt 0:00:08]} O-O {[%emt 0:00:17]} 12. Rae1 {[%emt 0:00:07]} Ne7 {[%emt 0:02:49]} 13. Ne5 {[%emt 0:04:14]} Bf5 {[%emt 0:00:45]} 14. a4 {[%emt 0:12:32]} a6 {[%emt 0:11:54]} 15. h3 {[%emt 0:21:05]} b5 {[%emt 0:11:20]} 16. axb5 {[%emt 0:01:20]} axb5 {[%emt 0:00:27]} 17. g4 {[%emt 0:02:50]} Bxd3 {[%emt 0:00:57]} 18. Nxd3 {[%emt 0:00:04]} Nc6 {[%emt 0:04:30]} 19. Nf3 {[%emt 0:37:18]} b4 {[%emt 0:11:57]} 20. Nc5 {[%emt 0:02:33]} bxc3 {[%emt 0:07:51]} 21. Qxc3 {[%emt 0:00:35]} Rfc8 {[%emt 0:02:48]} 22. b4 {[%emt 0:02:11]} Rab8 {[%emt 0:02:10]} 23. Rb1 {[%emt 0:01:35]} Ne4 {[%emt 0:05:49]} 24. Qe3 {[%emt 0:08:13]} Rxb4 {[%emt 0:04:03]} 25. Nxe4 {[%emt 0:00:54]} dxe4 {[%emt 0:00:24]} 26. Qxe4 {[%emt 0:00:13]} h6 {[%emt 0:07:14]} 27. Rbc1 {[%emt 0:00:42]} Ne7 {[%emt 0:02:59]} 28. Rxc8+ {[%emt 0:01:12]} Nxc8 {[%emt 0:00:08]} 29. Qa8 {[%emt 0:00:40]} Rb8 {[%emt 0:01:43]} 30. Qa4 {[%emt 0:00:28]} Nb6 {[%emt 0:01:44]} 31. Qc2 {[%emt 0:01:10]} Nd5 {[%emt 0:02:02]} 32. Ne5 {[%emt 0:03:38]} Nf4 {[%emt 0:01:28]} 33. Kh2 {[%emt 0:01:35]} Qxd4 {[%emt 0:03:26]} 34. Nc6 {[%emt 0:00:30]} Qb2 {[%emt 0:09:16]} 35. Qe4 {[%emt 0:00:19]} Nd5 {[%emt 0:03:03]} 36. Nxb8 {[%emt 0:00:08]} Qxb8+ {[%emt 0:00:06]} 37. Kh1 {[%emt 0:00:39]} Qb3 {[%emt 0:00:50]} 38. Kg2 {[%emt 0:00:45]} Qb8 {[%emt 0:00:58]} 39. Rb1 {[%emt 0:00:30]} Qd6 {[%emt 0:00:54]} 40. Qf3 {[%emt 0:00:36]} Nf4+ {[%emt 0:01:34]} 41. Kg1 {[%emt 0:00:16]} Qd2 {[%emt 0:01:01]} 42. Rb8+ {[%emt 0:00:42]} Kh7 {[%emt 0:00:09]} 43. Qe4+ {[%emt 0:00:31]} g6 {[%emt 0:01:24]} 44. Qf3 {[%emt 0:00:30]} Ne2+ {[%emt 0:00:39]} 45. Kg2 {[%emt 0:00:32]} Nf4+ {[%emt 0:00:44]} 46. Kg3 {[%emt 0:00:30]} Ne2+ {[%emt 0:00:20]} 47. Kg2 {[%emt 0:00:11]} Nf4+ {[%emt 0:00:08]} 48. Kh2 {[%emt 0:00:06]} Qd6 {[%emt 0:00:47]} 49. Rb7 {[%emt 0:00:35]} Ne2+ {[%emt 0:01:03]} 50. Kg2 {[%emt 0:00:51]} Nf4+ {[%emt 0:00:12]} 51. Kg1 {[%emt 0:00:20]} Kg7 {[%emt 0:00:47]} 52. Qc3+ {[%emt 0:00:27]} e5 {[%emt 0:00:19]} 53. Qc7 {[%emt 0:01:05]} Nxh3+ {[%emt 0:00:55]} 54. Kh2 {[%emt 0:00:22]} Qxc7 {[%emt 0:00:15]} 55. Rxc7 {[%emt 0:00:06]} Nxf2 {[%emt 0:00:06]} 56. Kg3 {[%emt 0:00:54]} Ne4+ {[%emt 0:00:36]} 57. Kf3 {[%emt 0:00:20]} Nf6 {[%emt 0:00:36]} 58. Rc6 {[%emt 0:00:37]} e4+ {[%emt 0:00:48]} 59. Kf4 {[%emt 0:00:23]} e3 {[%emt 0:00:38]} 60. Rc2 {[%emt 0:00:46]} Nd5+ {[%emt 0:00:29]} 61. Kf3 {[%emt 0:00:31]} Kf6 {[%emt 0:00:28]} 62. Rc6+ {[%emt 0:00:28]} Ke5 {[%emt 0:00:12]} 63. Rc8 {[%emt 0:00:17]} f5 {[%emt 0:00:39]} 64. Rh8 {[%emt 0:00:42]} fxg4+ {[%emt 0:00:22]} 65. Kxg4 {[%emt 0:00:04]} h5+ {[%emt 0:00:45]} 66. Kg5 {[%emt 0:00:22]} Nf4 {[%emt 0:00:52]} 67. Re8+ {[%emt 0:00:35]} Ne6+ {[%emt 0:00:15]} 68. Kxg6 {[%emt 0:00:04]} Kd5 {[%emt 0:00:35]} 69. Kf6 {[%emt 0:00:50]} Nc5 {[%emt 0:01:19]} 70. Rxe3 {[%emt 0:00:21]} Ne4+ {[%emt 0:00:14]} 71. Kf5 {[%emt 0:00:39]} Nf2 {[%emt 0:00:32]} 72. Kg5 {[%emt 0:00:23]} Kd4 {[%emt 0:00:30]} 73. Re7 {[%emt 0:00:28]} Nd3 {[%emt 0:00:42]} 74. Kxh5 {[%emt 0:00:12]} Ne5 {[%emt 0:00:10]} 75. Kg5 {[%emt 0:00:15]} Nc6 {[%emt 0:00:21]} 76. Re8 {[%emt 0:00:31]} Kd5 {[%emt 0:00:24]} 77. Kf5 {[%emt 0:00:15]} Nd4+ {[%emt 0:00:16]} 78. Kf6 {[%emt 0:00:11]} Nc6 {[%emt 0:00:10]} 79. Re1 {[%emt 0:00:31]} Nd4 {[%emt 0:00:20]} 80. Rd1 {[%emt 0:00:14]} Ke4 {[%emt 0:00:07]} 81. Rh1 {[%emt 0:00:06]} Nf3 {[%emt 0:00:18]} 82. Ra1 {[%emt 0:00:10]} Nd4 {[%emt 0:00:17]} 83. Ra4 {[%emt 0:00:08]} Kd5 {[%emt 0:00:11]} 84. Ra8 {[%emt 0:00:17]} Nc6 {[%emt 0:00:11]} 85. Kf5 {[%emt 0:00:12]} Nd4+ {[%emt 0:00:11]} 86. Kf4 {[%emt 0:00:05]} Ne6+ {[%emt 0:00:09]} 87. Ke3 {[%emt 0:00:06]} Nc5 {[%emt 0:00:31]} 88. Rh8 {[%emt 0:00:16]} Ke5 {[%emt 0:01:26]} 89. Rh5+ {[%emt 0:00:14]} Kd6 {[%emt 0:00:12]} 90. Kd4 {[%emt 0:00:07]} Ne6+ {[%emt 0:00:11]} 91. Kc4 {[%emt 0:00:10]} Nf4 {[%emt 0:00:20]} 92. Ra5 {[%emt 0:00:11]} Ke6 {[%emt 0:00:25]} 93. Kd4 {[%emt 0:00:08]} Ng6 {[%emt 0:00:49]} 94. Ke4 {[%emt 0:00:07]} Ne7 {[%emt 0:00:49]} 95. Ra6+ {[%emt 0:00:05]} Kd7 {[%emt 0:00:16]} 96. Ke5 {[%emt 0:00:11]} Nc6+ {[%emt 0:00:10]} 97. Ke4 {[%emt 0:00:15]} Kd6 {[%emt 0:00:10]} 98. Ra1 {[%emt 0:00:05]} Ne7 {[%emt 0:00:27]} 99. Rc1 {[%emt 0:00:18]} Ke6 {[%emt 0:00:25]} 100. Ra1 {[%emt 0:00:11]} Kd6 {[%emt 0:00:07]} 101. Ra5 {[%emt 0:00:06]} Nc6 {[%emt 0:00:31]} 102. Rh5 {[%emt 0:00:06]} Ne7 {[%emt 0:00:54]} 103. Rh6+ {[%emt 0:00:10]} Kd7 {[%emt 0:00:13]} 104. Ke5 {[%emt 0:00:12]} Nc6+ {[%emt 0:00:15]} 105. Kd5 {[%emt 0:00:07]} Ne7+ {[%emt 0:00:12]} 106. Kc5 {[%emt 0:00:04]} Nf5 {[%emt 0:00:23]} 107. Rf6 {[%emt 0:00:19]} Ne7 {[%emt 0:00:32]} 108. Ra6 {[%emt 0:00:10]} Nf5 {[%emt 0:00:41]} 109. Rg6 {[%emt 0:00:28]} Ne7 {[%emt 0:00:14]} 110. Rd6+ {[%emt 0:00:24]} Ke8 {[%emt 0:00:15]} 111. Ra6 {[%emt 0:00:27]} Kd7 {[%emt 0:00:33]} 112. Kd4 {[%emt 0:00:17]} Nc6+ {[%emt 0:00:12]} 113. Kc5 {[%emt 0:00:10]} Ne7 {[%emt 0:00:17]} 114. Rh6 {[%emt 0:00:23]} Nf5 {[%emt 0:00:24]} 115. Rh1 {[%emt 0:00:14]} Ke6 {[%emt 0:00:34]} 116. Re1+ {[%emt 0:00:08]} Kf6 {[%emt 0:00:11]} 117. Kd5 {[%emt 0:00:04]} Ne7+ {[%emt 0:00:12]} 118. Kd6 {[%emt 0:00:05]} Nf5+ {[%emt 0:00:11]} 119. Kd7 {[%emt 0:00:05]} Nd4 {[%emt 0:00:30]} 120. Re4 {[%emt 0:00:09]} Nf5 {[%emt 0:00:12]} 121. Re1 {[%emt 0:00:09]} Nd4 {[%emt 0:00:30]} 122. Kd6 {[%emt 0:00:11]} Nf5+ {[%emt 0:00:14]} 123. Kd5 {[%emt 0:00:05]} Ne7+ {[%emt 0:00:11]} 124. Ke4 {[%emt 0:00:03]} Ke6 {[%emt 0:00:22]} 1/2-1/2

[Event "Kragero Resort International 2022"]
[Site "Kragero"]
[Date "2022.02.25"]
[Round "6.7"]
[White "Thorisson, Benedikt"]
[Black "Frovik, Einar Clausen"]
[Result "1-0"]
[ECO "B76"]
[WhiteElo "1790"]
[BlackElo "1550"]
[Annotator "NA"]
[PlyCount "45"]
[EventDate "2022.02.23"]
[EventType "swiss"]
[EventCountry "NOR"]
[SourceTitle "playchess.com"]
[Source "ChessBase"]
[SourceQuality "1"]
[TimeControl "5400+30"]

1. e4 {[%emt 0:00:03]} c5 {[%emt 0:00:58]} 2. Nf3 {[%emt 0:00:12]} d6 {[%emt 0:00:04]} 3. d4 {[%emt 0:00:11]} cxd4 {[%emt 0:00:06]} 4. Nxd4 {[%emt 0:00:04]} Nf6 {[%emt 0:00:18]} 5. Nc3 {[%emt 0:00:20]} g6 {[%emt 0:00:06]} 6. f3 {[%emt 0:01:06]} Bg7 {[%emt 0:00:33]} 7. Be3 {[%emt 0:00:59]} O-O {[%emt 0:00:13]} 8. g4 {[%emt 0:00:27]} h5 {[%emt 0:15:04]} 9. gxh5 {[%emt 0:01:08]} Nxh5 {[%emt 0:00:10]} 10. Qd2 {[%emt 0:00:18]} Nc6 {[%emt 0:03:33]} 11. O-O-O {[%emt 0:01:43]} Bd7 {[%emt 0:02:26]} 12. Kb1 {[%emt 0:02:47]} Rc8 {[%emt 0:01:52]} 13. Be2 {[%emt 0:03:06]} Ne5 {[%emt 0:07:17]} 14. f4 {[%emt 0:01:33]} Nc4 {[%emt 0:02:09]} 15. Bxc4 {[%emt 0:00:19]} Rxc4 {[%emt 0:00:04]} 16. f5 {[%emt 0:00:32]} Qa5 {[%emt 0:08:55]} 17. Rhg1 {[%emt 0:10:54]} Rfc8 {[%emt 0:28:59]} 18. fxg6 {[%emt 0:04:51]} fxg6 {[%emt 0:01:48]} 19. Rxg6 {[%emt 0:02:43]} Kh7 {[%emt 0:01:43]} 20. Rg5 {[%emt 0:00:19]} R4c5 {[%emt 0:02:33]} 21. Rdg1 {[%emt 0:01:17]} Bf6 {[%emt 0:02:33]} 22. Rg6 {[%emt 0:02:05]} Ng7 {[%emt 0:02:39]} 23. Qg2 {[%emt 0:01:20]} 1-0

[Event "Kragero Resort International 2022"]
[Site "Kragero"]
[Date "2022.02.25"]
[Round "6.8"]
[White "Strand, Amund Pihl"]
[Black "Skaar, Ben Samuel Groth"]
[Result "1-0"]
[ECO "A25"]
[WhiteElo "1748"]
[BlackElo "1641"]
[Annotator "NA"]
[PlyCount "141"]
[EventDate "2022.02.23"]
[EventType "swiss"]
[EventCountry "NOR"]
[SourceTitle "playchess.com"]
[Source "ChessBase"]
[SourceQuality "1"]
[TimeControl "5400+30"]

1. c4 {[%emt 0:02:47]} e5 {[%emt 0:00:06]} 2. Nc3 {[%emt 0:00:06]} Nf6 {[%emt 0:00:04]} 3. g3 {[%emt 0:00:07]} Nc6 {[%emt 0:00:11]} 4. Bg2 {[%emt 0:00:07]} Bb4 {[%emt 0:00:15]} 5. d3 {[%emt 0:02:03]} d5 {[%emt 0:01:46]} 6. cxd5 {[%emt 0:01:46]} Nxd5 {[%emt 0:00:11]} 7. Bd2 {[%emt 0:01:44]} Be6 {[%emt 0:07:07]} 8. Nf3 {[%emt 0:02:26]} h6 {[%emt 0:03:21]} 9. O-O {[%emt 0:03:29]} Bxc3 {[%emt 0:01:28]} 10. bxc3 {[%emt 0:01:08]} Qd7 {[%emt 0:01:16]} 11. c4 {[%emt 0:05:06]} Nde7 {[%emt 0:01:49]} 12. Bc3 {[%emt 0:04:12]} Ng6 {[%emt 0:04:53]} 13. Qb3 {[%emt 0:06:47]} Rb8 {[%emt 0:01:46]} 14. Qb2 {[%emt 0:01:10]} f6 {[%emt 0:03:22]} 15. Rfd1 {[%emt 0:00:58]} Qf7 {[%emt 0:01:04]} 16. d4 {[%emt 0:03:52]} exd4 {[%emt 0:03:13]} 17. Nxd4 {[%emt 0:00:09]} Nxd4 {[%emt 0:01:44]} 18. Bxd4 {[%emt 0:00:08]} O-O {[%emt 0:00:35]} 19. Bxa7 {[%emt 0:03:02]} Ra8 {[%emt 0:00:15]} 20. Qxb7 {[%emt 0:00:43]} Bxc4 {[%emt 0:01:46]} 21. Rac1 {[%emt 0:05:36]} Rad8 {[%emt 0:08:42]} 22. a4 {[%emt 0:05:24]} Rfe8 {[%emt 0:09:47]} 23. e3 {[%emt 0:06:20]} Ne5 {[%emt 0:01:47]} 24. a5 {[%emt 0:03:22]} Qh5 {[%emt 0:05:32]} 25. Rd4 {[%emt 0:09:01]} Qe2 {[%emt 0:11:17]} 26. Rcxc4 {[%emt 0:07:19]} Nxc4 {[%emt 0:06:55]} 27. Bd5+ {[%emt 0:00:27]} Kh8 {[%emt 0:00:31]} 28. Bxc4 {[%emt 0:00:10]} Qe1+ {[%emt 0:00:21]} 29. Kg2 {[%emt 0:00:12]} Qxa5 {[%emt 0:00:58]} 30. Bb5 {[%emt 0:06:53]} Rxd4 {[%emt 0:02:25]} 31. Bxd4 {[%emt 0:00:11]} Rd8 {[%emt 0:00:28]} 32. Bc6 {[%emt 0:04:34]} Qf5 {[%emt 0:05:24]} 33. Qxc7 {[%emt 0:01:10]} Rc8 {[%emt 0:00:06]} 34. Qd6 {[%emt 0:00:26]} Qc2 {[%emt 0:00:41]} 35. Bf3 {[%emt 0:01:54]} Qc7 {[%emt 0:01:08]} 36. Qe6 {[%emt 0:00:26]} Rb8 {[%emt 0:01:38]} 37. Be4 {[%emt 0:00:42]} Qc8 {[%emt 0:00:37]} 38. Qf7 {[%emt 0:00:27]} Qe8 {[%emt 0:00:10]} 39. Qd5 {[%emt 0:00:32]} Rb5 {[%emt 0:00:31]} 40. Qc6 {[%emt 0:02:04]} Qxc6 {[%emt 0:01:00]} 41. Bxc6 {[%emt 0:00:05]} Rb1 {[%emt 0:00:23]} 42. Kf3 {[%emt 0:00:18]} Kg8 {[%emt 0:00:09]} 43. Kf4 {[%emt 0:01:24]} Kf7 {[%emt 0:00:12]} 44. Bd5+ {[%emt 0:00:22]} Ke7 {[%emt 0:00:50]} 45. Kf5 {[%emt 0:00:27]} Rb5 {[%emt 0:00:35]} 46. e4 {[%emt 0:00:10]} Ra5 {[%emt 0:00:27]} 47. Kg6 {[%emt 0:01:02]} Kf8 {[%emt 0:00:57]} 48. h4 {[%emt 0:00:12]} Rb5 {[%emt 0:00:18]} 49. g4 {[%emt 0:00:36]} Ra5 {[%emt 0:00:06]} 50. f4 {[%emt 0:01:33]} Rb5 {[%emt 0:00:05]} 51. Bxf6 {[%emt 0:00:25]} gxf6 {[%emt 0:00:18]} 52. Kxf6 {[%emt 0:00:09]} Rb6+ {[%emt 0:00:07]} 53. Be6 {[%emt 0:00:36]} Rb4 {[%emt 0:00:24]} 54. Bd5 {[%emt 0:02:52]} Rb6+ {[%emt 0:00:07]} 55. Kf5 {[%emt 0:00:10]} Kg7 {[%emt 0:00:29]} 56. e5 {[%emt 0:02:02]} Rb5 {[%emt 0:00:23]} 57. Ke6 {[%emt 0:00:57]} Rb4 {[%emt 0:00:18]} 58. f5 {[%emt 0:00:46]} Rxg4 {[%emt 0:01:58]} 59. Ke7 {[%emt 0:00:06]} Ra4 {[%emt 0:00:46]} 60. f6+ {[%emt 0:00:15]} Kg6 {[%emt 0:00:22]} 61. Bc6 {[%emt 0:04:44]} Ra5 {[%emt 0:02:03]} 62. e6 {[%emt 0:00:24]} Ra7+ {[%emt 0:01:11]} 63. Bd7 {[%emt 0:00:06]} Ra8 {[%emt 0:00:09]} 64. Be8+ {[%emt 0:00:29]} Kh7 {[%emt 0:00:53]} 65. f7 {[%emt 0:00:15]} h5 {[%emt 0:00:34]} 66. f8=Q {[%emt 0:00:57]} Ra7+ {[%emt 0:00:14]} 67. Bd7 {[%emt 0:00:06]} Ra8 {[%emt 0:00:27]} 68. Qxa8 {[%emt 0:00:11]} Kg7 {[%emt 0:00:07]} 69. Qg2+ {[%emt 0:00:14]} Kh7 {[%emt 0:00:09]} 70. Kf7 {[%emt 0:00:05]} Kh8 {[%emt 0:00:08]} 71. Qg8# {[%emt 0:00:05]} 1-0

[Event "Kragero Resort International 2022"]
[Site "Kragero"]
[Date "2022.02.25"]
[Round "6.9"]
[White "Kaasen, Tor Fredrik"]
[Black "Radeva, Viktoria"]
[Result "1/2-1/2"]
[ECO "B42"]
[WhiteElo "2458"]
[BlackElo "2261"]
[Annotator "ChessBase"]
[PlyCount "166"]
[EventDate "2022.02.23"]
[EventType "swiss"]
[EventCountry "NOR"]
[SourceTitle "playchess.com"]
[Source "ChessBase"]
[SourceQuality "1"]
[TimeControl "5400+30"]

1. e4 {[%emt 0:01:32]} c5 {[%emt 0:00:05]} 2. Nf3 {[%emt 0:00:19]} e6 {[%emt 0:00:08]} 3. d4 {[%emt 0:00:38]} cxd4 {[%emt 0:00:12]} 4. Nxd4 {[%emt 0:00:09]} a6 {[%emt 0:00:17]} 5. Bd3 {[%emt 0:00:44]} Nf6 {[%emt 0:01:41]} 6. O-O {[%emt 0:00:41]} d6 {[%emt 0:00:21]} 7. c4 {[%emt 0:00:58]} g6 {[%emt 0:01:27]} 8. Nc3 {[%emt 0:00:57]} Bg7 {[%emt 0:00:07]} 9. Be3 {[%emt 0:01:55]} O-O {[%emt 0:00:41]} 10. Rc1 {[%emt 0:01:44]} Qc7 {[%emt 0:01:00]} 11. f3 {[%emt 0:01:01]} Nbd7 {[%emt 0:00:49]} 12. Qd2 {[%emt 0:01:20]} b6 {[%emt 0:00:49]} 13. Rfd1 {[%emt 0:01:07]} Bb7 {[%emt 0:00:49]} 14. Bf1 {[%emt 0:01:02]} Rfe8 {[%emt 0:08:36]} 15. b4 {[%emt 0:02:32]} Rac8 {[%emt 0:06:17]} 16. Nb3 {[%emt 0:02:20]} Bf8 {[%emt 0:02:57]} 17. a3 {[%emt 0:04:32]} Qb8 {[%emt 0:00:34]} 18. Kh1 {[%emt 0:01:24]} Qa8 {[%emt 0:09:57]} 19. Na4 {[%emt 0:07:10]} d5 {[%emt 0:07:31]} 20. exd5 {[%emt 0:04:04]} exd5 {[%emt 0:01:30]} 21. c5 {[%emt 0:02:43]} bxc5 {[%emt 0:29:34]} 22. Naxc5 {[%emt 0:02:20]} Nxc5 {[%emt 0:02:16]} 23. Nxc5 {[%emt 0:01:06]} Rcd8 {[%emt 0:08:45]} 24. Bd4 {[%emt 0:04:17]} Bg7 {[%emt 0:01:14]} 25. a4 {[%emt 0:08:42]} Bc8 {[%emt 0:03:49]} 26. b5 {[%emt 0:01:59]} axb5 {[%emt 0:00:16]} 27. axb5 {[%emt 0:00:20]} Nd7 {[%emt 0:01:02]} 28. Bxg7 {[%emt 0:10:17]} Kxg7 {[%emt 0:00:20]} 29. Qc3+ {[%emt 0:00:33]} Kg8 {[%emt 0:00:54]} 30. Ra1 {[%emt 0:00:27]} Qb8 {[%emt 0:00:17]} 31. Rxd5 {[%emt 0:00:26]} Nxc5 {[%emt 0:01:02]} 32. Rxd8 {[%emt 0:00:54]} Rxd8 {[%emt 0:00:08]} 33. Qxc5 {[%emt 0:00:05]} Be6 {[%emt 0:00:30]} 34. b6 {[%emt 0:00:41]} Bd5 {[%emt 0:04:47]} 35. Re1 {[%emt 0:06:47]} Be6 {[%emt 0:02:07]} 36. Ba6 {[%emt 0:02:23]} Rd6 {[%emt 0:00:57]} 37. Bb7 {[%emt 0:04:47]} Qd8 {[%emt 0:01:40]} 38. Qc7 {[%emt 0:01:39]} Qh4 {[%emt 0:00:25]} 39. Rb1 {[%emt 0:05:21]} Qd4 {[%emt 0:03:22]} 40. h3 {[%emt 0:01:00]} Rd7 {[%emt 0:00:42]} 41. Qb8+ {[%emt 0:03:30]} Rd8 {[%emt 0:00:01]} 42. Qa7 {[%emt 0:03:38]} Bf5 {[%emt 0:00:23]} 43. Ra1 {[%emt 0:02:06]} Qf2 {[%emt 0:01:06]} 44. Bd5 {[%emt 0:01:53]} Rxd5 {[%emt 0:00:05]} 45. Qa8+ {[%emt 0:00:10]} Kg7 {[%emt 0:00:04]} 46. Qxd5 {[%emt 0:00:18]} Qxb6 {[%emt 0:00:04]} 47. Qe5+ {[%emt 0:01:03]} Qf6 {[%emt 0:00:10]} 48. Qxf6+ {[%emt 0:00:23]} Kxf6 {[%emt 0:00:01]} 49. g4 {[%emt 0:00:18]} Be6 {[%emt 0:00:05]} 50. Ra5 {[%emt 0:00:19]} h6 {[%emt 0:01:42]} 51. Kh2 {[%emt 0:00:27]} Kg7 {[%emt 0:00:53]} 52. Kg3 {[%emt 0:00:17]} Bc4 {[%emt 0:00:41]} 53. Rc5 {[%emt 0:00:16]} Bb3 {[%emt 0:00:05]} 54. Rc6 {[%emt 0:00:23]} Bd5 {[%emt 0:00:19]} 55. Rb6 {[%emt 0:00:05]} Be6 {[%emt 0:00:40]} 56. Kf4 {[%emt 0:01:32]} g5+ {[%emt 0:01:17]} 57. Ke5 {[%emt 0:00:15]} Bc4 {[%emt 0:00:07]} 58. Rf6 {[%emt 0:01:13]} Bf1 {[%emt 0:01:10]} 59. Rd6 {[%emt 0:01:23]} Bxh3 {[%emt 0:00:24]} 60. Rd1 {[%emt 0:00:20]} Kg6 {[%emt 0:00:32]} 61. Rg1 {[%emt 0:01:18]} f6+ {[%emt 0:00:35]} 62. Ke6 {[%emt 0:00:23]} f5 {[%emt 0:00:26]} 63. Ke5 {[%emt 0:03:45]} fxg4 {[%emt 0:00:04]} 64. fxg4 {[%emt 0:00:06]} h5 {[%emt 0:00:20]} 65. gxh5+ {[%emt 0:00:09]} Kxh5 {[%emt 0:00:04]} 66. Kf6 {[%emt 0:00:05]} g4 {[%emt 0:00:10]} 67. Kf5 {[%emt 0:00:11]} Kh4 {[%emt 0:01:55]} 68. Kf4 {[%emt 0:00:13]} Kh5 {[%emt 0:00:18]} 69. Rc1 {[%emt 0:00:16]} Kg6 {[%emt 0:00:41]} 70. Rc6+ {[%emt 0:00:07]} Kf7 {[%emt 0:00:20]} 71. Ke5 {[%emt 0:00:08]} Kg7 {[%emt 0:00:46]} 72. Kf5 {[%emt 0:00:06]} g3+ {[%emt 0:00:21]} 73. Kg5 {[%emt 0:01:06]} g2 {[%emt 0:00:18]} 74. Rg6+ {[%emt 0:00:08]} Kh7 {[%emt 0:00:49]} 75. Kh5 {[%emt 0:00:11]} Kh8 {[%emt 0:00:25]} 76. Kh6 {[%emt 0:00:09]} Bg4 {[%emt 0:00:35]} 77. Rb6 {[%emt 0:01:47]} Be6 {[%emt 0:00:32]} 78. Rb1 {[%emt 0:00:34]} Bd5 {[%emt 0:00:16]} 79. Rd1 {[%emt 0:00:21]} Bc4 {[%emt 0:00:31]} 80. Kg6 {[%emt 0:00:49]} Bd3+ {[%emt 0:00:21]} 81. Kh6 {[%emt 0:00:05]} Bc4 {[%emt 0:00:03]} 82. Rg1 {[%emt 0:00:10]} Bf1 {[%emt 0:00:32]} 83. Rxg2 {[%emt 0:00:04]} Bxg2 {[%emt 0:00:03]} 1/2-1/2

[Event "Kragero Resort International 2022"]
[Site "Kragero"]
[Date "2022.02.25"]
[Round "6.13"]
[White "Vrolijk, Liam"]
[Black "Kanyamarala, Tarun"]
[Result "0-1"]
[ECO "A88"]
[WhiteElo "2480"]
[BlackElo "2343"]
[Annotator "ChessBase"]
[PlyCount "94"]
[EventDate "2022.02.23"]
[EventType "swiss"]
[EventCountry "NOR"]
[SourceTitle "playchess.com"]
[Source "ChessBase"]
[SourceQuality "1"]
[TimeControl "5400+30"]

1. d4 {[%emt 0:01:05]} f5 {[%emt 0:01:25]} 2. g3 {[%emt 0:00:36]} Nf6 {[%emt 0:00:59]} 3. Bg2 {[%emt 0:00:07]} g6 {[%emt 0:00:06]} 4. Nf3 {[%emt 0:00:05]} Bg7 {[%emt 0:00:08]} 5. O-O {[%emt 0:00:10]} O-O {[%emt 0:00:07]} 6. c4 {[%emt 0:00:15]} d6 {[%emt 0:00:09]} 7. Nc3 {[%emt 0:00:06]} c6 {[%emt 0:00:11]} 8. d5 {[%emt 0:00:34]} e5 {[%emt 0:00:14]} 9. dxe6 {[%emt 0:00:09]} Bxe6 {[%emt 0:00:06]} 10. b3 {[%emt 0:00:32]} Na6 {[%emt 0:00:37]} 11. Ng5 {[%emt 0:01:25]} Bc8 {[%emt 0:00:52]} 12. Bb2 {[%emt 0:02:59]} Qe7 {[%emt 0:00:33]} 13. Qc2 {[%emt 0:01:36]} Bd7 {[%emt 0:00:17]} 14. Rad1 {[%emt 0:01:33]} Rad8 {[%emt 0:00:17]} 15. e3 {[%emt 0:02:48]} Bc8 {[%emt 0:05:25]} 16. Rfe1 {[%emt 0:05:56]} Ng4 {[%emt 0:08:07]} 17. Nf3 {[%emt 0:05:46]} Ne5 {[%emt 0:02:04]} 18. Nd4 {[%emt 0:00:52]} Nc5 {[%emt 0:17:40]} 19. h3 {[%emt 0:07:16]} Qf7 {[%emt 0:10:51]} 20. f4 {[%emt 0:13:26]} Ned7 {[%emt 0:00:13]} 21. e4 {[%emt 0:07:18]} fxe4 {[%emt 0:05:08]} 22. Nxe4 {[%emt 0:00:17]} Nxe4 {[%emt 0:00:31]} 23. Rxe4 {[%emt 0:01:57]} Nf6 {[%emt 0:18:23]} 24. Re3 {[%emt 0:03:43]} d5 {[%emt 0:02:15]} 25. Rde1 {[%emt 0:03:43]} Rfe8 {[%emt 0:00:17]} 26. f5 {[%emt 0:07:51]} dxc4 {[%emt 0:12:12]} 27. Ne6 {[%emt 0:05:45]} Bxe6 {[%emt 0:00:33]} 28. fxe6 {[%emt 0:00:51]} Qe7 {[%emt 0:00:29]} 29. bxc4 {[%emt 0:01:06]} Nh5 {[%emt 0:02:31]} 30. Ba3 {[%emt 0:00:44]} Qg5 {[%emt 0:01:53]} 31. h4 {[%emt 0:04:21]} Qg4 {[%emt 0:00:21]} 32. Kh2 {[%emt 0:02:50]} Be5 {[%emt 0:01:49]} 33. Rxe5 {[%emt 0:04:39]} Qxg3+ {[%emt 0:00:05]} 34. Kh1 {[%emt 0:03:03]} Qxa3 {[%emt 0:03:48]} 35. e7 {[%emt 0:00:15]} Rd4 {[%emt 0:02:20]} 36. R1e3 {[%emt 0:04:46]} Qd6 {[%emt 0:00:38]} 37. c5 {[%emt 0:01:41]} Qf6 {[%emt 0:01:37]} 38. Kg1 {[%emt 0:00:06]} Qxh4 {[%emt 0:01:54]} 39. R3e4 {[%emt 0:04:02]} Rxe4 {[%emt 0:00:39]} 40. Rxe4 {[%emt 0:00:02]} Qg5 {[%emt 0:01:12]} 41. Qb3+ {[%emt 0:02:17]} Kg7 {[%emt 0:00:09]} 42. Qxb7 {[%emt 0:00:41]} Qxc5+ {[%emt 0:00:07]} 43. Kh2 {[%emt 0:00:04]} Nf6 {[%emt 0:00:24]} 44. Re6 {[%emt 0:00:09]} Ng4+ {[%emt 0:01:24]} 45. Kg3 {[%emt 0:00:34]} Qf2+ {[%emt 0:00:50]} 46. Kh3 {[%emt 0:00:01]} g5 {[%emt 0:00:55]} 47. Bxc6 {[%emt 0:01:41]} Ne3 {[%emt 0:00:20]} 0-1